[Event "Romanian Women Championship 2024"]
[Site "Eforie Nord"]
[Date "2024.03.01"]
[Round "8.11"]
[White "Badica, Ariana"]
[Black "Sava, Ana-Maria"]
[Result "1-0"]
[ECO "B12"]
[WhiteElo "1494"]
[BlackElo "1916"]
[Annotator "NA RC"]
[PlyCount "65"]
[EventDate "2024.02.24"]
[EventType "swiss"]
[EventCountry "ROU"]
[SourceTitle "playchess.com"]
[Source "ChessBase"]
[SourceQuality "1"]
[TimeControl "40/5400+30:900+30"]

1. e4 {[%emt 0:00:02]} c6 {[%emt 0:00:07]} 2. d4 {[%emt 0:00:05]} d5 {[%emt 0:00:07]} 3. e5 {[%emt 0:00:03]} g6 {[%emt 0:00:10]} 4. Nf3 {[%emt 0:00:20]} Bg4 {[%emt 0:00:09]} 5. Be2 {[%emt 0:00:14]} Bxf3 {[%emt 0:00:23]} 6. Bxf3 {[%emt 0:00:12]} Bg7 {[%emt 0:00:38]} 7. O-O {[%emt 0:00:44]} e6 {[%emt 0:00:10]} 8. Bf4 {[%emt 0:07:47]} Ne7 {[%emt 0:00:48]} 9. Qd2 {[%emt 0:00:30]} Nf5 {[%emt 0:01:30]} 10. Nc3 {[%emt 0:11:35]} Nd7 {[%emt 0:01:39]} 11. Rae1 {[%emt 0:04:05]} Qb6 {[%emt 0:01:28]} 12. Ne2 {[%emt 0:06:02]} h5 {[%emt 0:04:12]} 13. c3 {[%emt 0:02:54]} Nh4 {[%emt 0:05:39]} 14. Qd3 {[%emt 0:01:58]} c5 {[%emt 0:01:21]} 15. Be3 {[%emt 0:06:02]} c4 {[%emt 0:01:11]} 16. Qc2 {[%emt 0:00:22]} Nxf3+ {[%emt 0:00:55]} 17. gxf3 {[%emt 0:00:06]} O-O-O {[%emt 0:00:53]} 18. b3 {[%emt 0:00:19]} Qc7 {[%emt 0:00:54]} 19. bxc4 {[%emt 0:00:23]} dxc4 {[%emt 0:00:38]} 20. Rb1 {[%emt 0:02:32]} Bh6 {[%emt 0:01:53]} 21. f4 {[%emt 0:01:37]} Qc6 {[%emt 0:02:41]} 22. d5 {[%emt 0:03:37]} Qxd5 {[%emt 0:09:41]} 23. Rfd1 {[%emt 0:05:17]} Qa5 {[%emt 0:03:52]} 24. Nd4 {[%emt 0:01:47]} Nxe5 {[%emt 0:16:14]} 25. Qe4 {[%emt 0:06:30]} Rd5 {[%emt 0:02:32]} 26. fxe5 {[%emt 0:01:02]} Bxe3 {[%emt 0:00:11]} 27. fxe3 {[%emt 0:01:15]} h4 {[%emt 0:00:24]} 28. Rb4 {[%emt 0:01:16]} Rh5 {[%emt 0:04:59]} 29. Rxc4+ {[%emt 0:00:49]} Kb8 {[%emt 0:00:08]} 30. Rb1 {[%emt 0:00:39]} Rg5+ {[%emt 0:07:56]} 31. Kh1 {[%emt 0:00:49]} Qa6 {[%emt 0:00:48]} 32. Nc6+ {[%emt 0:00:56]} Ka8 {[%emt 0:00:40]} 33. Nb4 {[%emt 0:35:11]} 1-0

[Event "Romanian Women Championship 2024"]
[Site "Eforie Nord"]
[Date "2024.03.01"]
[Round "8.12"]
[White "Puia, Alexia-Teodora"]
[Black "Petculescu, Diana-Silvana"]
[Result "1-0"]
[ECO "D00"]
[WhiteElo "1751"]
[BlackElo "1556"]
[Annotator "NA RC"]
[PlyCount "69"]
[EventDate "2024.02.24"]
[EventType "swiss"]
[EventCountry "ROU"]
[SourceTitle "playchess.com"]
[Source "ChessBase"]
[SourceQuality "1"]
[TimeControl "40/5400+30:900+30"]

1. d4 {[%emt 0:00:04]} Nf6 {[%emt 0:00:11]} 2. Bg5 {[%emt 0:00:08]} d5 {[%emt 0:00:05]} 3. Bxf6 {[%emt 0:00:20]} exf6 {[%emt 0:00:08]} 4. e3 {[%emt 0:00:06]} Bd6 {[%emt 0:00:46]} 5. c4 {[%emt 0:01:49]} dxc4 {[%emt 0:01:44]} 6. Bxc4 {[%emt 0:00:06]} O-O {[%emt 0:00:15]} 7. Nc3 {[%emt 0:00:14]} f5 {[%emt 0:02:48]} 8. Qf3 {[%emt 0:06:05]} Nc6 {[%emt 0:05:47]} 9. Nge2 {[%emt 0:03:54]} Re8 {[%emt 0:04:10]} 10. O-O-O {[%emt 0:13:34]} Qg5 {[%emt 0:13:00]} 11. g3 {[%emt 0:13:41]} Bd7 {[%emt 0:09:30]} 12. Rhg1 {[%emt 0:04:35]} a6 {[%emt 0:03:23]} 13. h4 {[%emt 0:06:25]} Qg4 {[%emt 0:02:02]} 14. Qh1 {[%emt 0:01:50]} Qh5 {[%emt 0:07:50]} 15. Nf4 {[%emt 0:04:07]} Qh6 {[%emt 0:10:26]} 16. Nh3 {[%emt 0:08:45]} Be7 {[%emt 0:05:08]} 17. Kb1 {[%emt 0:07:39]} Rab8 {[%emt 0:06:21]} 18. Nd5 {[%emt 0:06:39]} b5 {[%emt 0:06:10]} 19. Bb3 {[%emt 0:03:19]} Qd6 {[%emt 0:01:43]} 20. Rc1 {[%emt 0:03:10]} Rbc8 {[%emt 0:06:05]} 21. Rc5 {[%emt 0:02:22]} Na5 {[%emt 0:03:03]} 22. Nxe7+ {[%emt 0:01:27]} Qxe7 {[%emt 0:00:49]} 23. Bc2 {[%emt 0:02:24]} g6 {[%emt 0:02:57]} 24. h5 {[%emt 0:01:45]} Bc6 {[%emt 0:02:30]} 25. Rxc6 {[%emt 0:00:53]} Nxc6 {[%emt 0:00:41]} 26. Qxc6 {[%emt 0:00:05]} Qd6 {[%emt 0:00:15]} 27. Qxd6 {[%emt 0:04:13]} cxd6 {[%emt 0:00:07]} 28. Nf4 {[%emt 0:00:11]} Kg7 {[%emt 0:00:49]} 29. g4 {[%emt 0:01:16]} fxg4 {[%emt 0:00:40]} 30. Rxg4 {[%emt 0:00:06]} Rc4 {[%emt 0:00:37]} 31. Bb3 {[%emt 0:00:55]} Rc6 {[%emt 0:00:36]} 32. hxg6 {[%emt 0:01:22]} hxg6 {[%emt 0:00:15]} 33. a3 {[%emt 0:01:24]} Rh8 {[%emt 0:00:17]} 34. Bd5 {[%emt 0:00:22]} Rc7 {[%emt 0:00:28]} 35. Rxg6+ {[%emt 0:00:11]} 1-0

[Event "Romanian Women Championship 2024"]
[Site "Eforie Nord"]
[Date "2024.03.02"]
[Round "9.2"]
[White "Ciolacu, Alessia-Mihaela"]
[Black "Peptan, Corina-Isabela"]
[Result "1/2-1/2"]
[ECO "A40"]
[WhiteElo "2175"]
[BlackElo "2314"]
[Annotator "TA"]
[PlyCount "69"]
[EventDate "2024.02.24"]
[EventType "swiss"]
[EventCountry "ROU"]
[SourceTitle "playchess.com"]
[Source "ChessBase"]
[SourceQuality "1"]
[TimeControl "40/5400+30:900+30"]

{[%evp 9,69,23,26,21,51,39,46,35,52,55,47,31,31,13,31,14,17,0,8,8,8,0,14,5,8,1,15,14,9,9,12,7,44,0,2,12,7,0,15,0,0,0,0,0,16,18,39,32,33,13,26,12,41,33,69,36,37,11,15,6,6,1]} 1. d4 {[%emt 0:00:04]} e6 {[%emt 0:01:17]} 2. c4 {[%emt 0:00:11]} Bb4+ {[%emt 0:00:03]} 3. Bd2 {[%emt 0:00:08]} a5 {[%emt 0:00:05]} 4. a3 {[%emt 0:00:05]} Bxd2+ {[%emt 0:00:47]} 5. Qxd2 {[%emt 0:00:06]} d5 {[%emt 0:00:28]} 6. Nc3 {[%emt 0:00:51]} dxc4 {[%emt 0:05:55]} 7. e3 {[%emt 0:09:20]} Nf6 {[%emt 0:07:46]} 8. Bxc4 {[%emt 0:01:25] White is slightly better.} O-O {[%emt 0:00:04]} 9. Nf3 {[%emt 0:10:29]} b6 {[%emt 0:00:31]} 10. Rc1 {[%emt 0:01:00]} Bb7 {[%emt 0:00:19]} 11. Be2 {[%emt 0:06:47]} Qe7 {[%emt 0:03:13]} 12. O-O {[%emt 0:00:47]} Nbd7 {[%emt 0:01:20]} 13. Nb5 {[%emt 0:06:38]} c6 {[%emt 0:03:43][%cal Bc7c6,Bc6c5][%mdl 32]} 14. Nc3 {[%emt 0:00:14] Wards off Ne4} c5 {[%emt 0:03:06]} 15. Rfd1 {[%emt 0:01:05]} Rfd8 {[%emt 0:00:23]} 16. Qc2 {[%emt 0:08:42]} Rac8 {[%emt 0:03:32]} 17. Qb3 {[%emt 0:01:17]} Nd5 {[%emt 0:06:42]} 18. dxc5 {[%emt 0:06:01]} Rxc5 {[%emt 0:07:28]} 19. Na4 {[%emt 0:02:32]} Rcc8 {[%emt 0:02:16]} 20. Bb5 {[%emt 0:07:03]} N7f6 {[%emt 0:16:13]} 21. Nd4 {[%emt 0:05:03][%cal Bf3d4,Bd4e2,Be2c3][%mdl 32]} Rxc1 {[%emt 0:27:58]} 22. Rxc1 {[%emt 0:00:06]} Rc8 {[%emt 0:02:19]} 23. Rd1 {[%emt 0:14:01]} Ne4 {[%emt 0:04:33]} 24. Qd3 {[%emt 0:01:52]} Nc5 {[%emt 0:00:42]} 25. Nxc5 {[%emt 0:00:28]} Qxc5 {[%emt 0:00:07]} 26. Ne2 {[%emt 0:01:43]} Qe7 {[%emt 0:00:25]} 27. e4 {[%emt 0:00:45]} Nf6 {[%emt 0:00:04][%cal Bd5f6,Bf6g4,Bg4e5][%mdl 32]} 28. Nc3 {[%emt 0:02:15]} h6 {[%emt 0:00:21]} 29. Qe3 {[%emt 0:01:28]} Qc7 {[%emt 0:01:15]} 30. Qd4 {[%emt 0:06:42]} Ng4 {[%emt 0:00:57]} 31. Qd6 {[%emt 0:01:01]} Ne5 {[%emt 0:01:24]} 32. Qxc7 {[%emt 0:03:43]} Rxc7 {[%emt 0:00:01]} 33. Rd6 {[%emt 0:00:11]} Bc6 {[%emt 0:00:51]} 34. Bxc6 {[%emt 0:02:05]} Rxc6 {[%emt 0:00:27]} 35. Rxc6 {[%emt 0:01:52] Weighted Error Value: White=0.10 (very precise) /Black=0.10 (very precise) .  Inaccurate:     	White=3     	Black=4      OK:         	White=9     	Black=11} 1/2-1/2

[Event "Romanian Women Championship 2024"]
[Site "Eforie Nord"]
[Date "2024.03.02"]
[Round "9.3"]
[White "Trifoi, Mihaela-Ioana"]
[Black "Cosma, Elena-Luminita"]
[Result "1/2-1/2"]
[ECO "C02"]
[WhiteElo "2003"]
[BlackElo "2236"]
[Annotator "TA"]
[PlyCount "99"]
[EventDate "2024.02.24"]
[EventType "swiss"]
[EventCountry "ROU"]
[SourceTitle "playchess.com"]
[Source "ChessBase"]
[SourceQuality "1"]
[TimeControl "40/5400+30:900+30"]

{[%evp 11,99,-1,14,-39,-50,-50,0,0,-8,0,0,0,0,0,31,16,39,49,19,16,31,13,226,243,236,145,124,123,256,229,302,189,278,277,371,285,294,239,233,179,189,49,86,86,156,153,155,150,168,161,159,164,185,168,208,133,196,136,136,133,135,136,110,135,242,18,18,0,23,0,0,0,0,0,0,0,0,0,0,0,0,0,0,0,0,0,0,0,0,0]} 1. e4 {[%emt 0:08:25][%cal Be2e4,Be4e5][%mdl 32]} e6 {[%emt 0:00:18]} 2. d4 {[%emt 0:00:20]} d5 {[%emt 0:00:05]} 3. e5 {[%emt 0:00:05]} c5 {[%emt 0:00:04]} 4. c3 {[%emt 0:00:05]} Nc6 {[%emt 0:00:05]} 5. Nf3 {[%emt 0:00:05]} Bd7 {[%emt 0:00:08]} 6. a3 {[%emt 0:00:08]} Nge7 {[%emt 0:01:03]} 7. Be3 {[%emt 0:03:04]} (7. Bd3 $11) 7... Nf5 $15 {[%emt 0:01:34]} 8. Bd3 {[%emt 0:00:05]} cxd4 {[%emt 0:03:59]} 9. cxd4 {[%emt 0:00:13]} Nxe3 {[%emt 0:01:39]} 10. fxe3 {[%emt 0:00:07]} Rc8 {[%emt 0:01:32]} 11. O-O {[%emt 0:00:22]} Be7 {[%emt 0:00:30]} 12. Nc3 {[%emt 0:00:30]} h6 {[%emt 0:02:51]} 13. Rc1 {[%emt 0:00:21]} Na5 {[%emt 0:03:06]} 14. Qe2 {[%emt 0:09:26]} O-O {[%emt 0:12:46]} 15. Kh1 {[%emt 0:03:52]} a6 {[%emt 0:12:35]} 16. e4 {[%emt 0:03:46]} Be8 $2 {[%emt 0:02:33]} (16... dxe4 $11 {and Black stays safe.} 17. Qxe4 g6) 17. exd5 $18 {[%emt 1:08:06] Hoping for d6.} exd5 {[%emt 0:08:35]} 18. b4 {[%emt 0:00:00]} Nc6 {[%emt 0:03:50][%cal Ba5c6,Bc6a7,Ba7c8,Bc8e7][%mdl 32]} 19. Bb1 {[%emt 0:00:00] White has more active pieces.} g6 {[%emt 0:09:41]} (19... Na7 $16 {is a better defense.}) 20. Ba2 {[%emt 0:00:00]} Na7 {[%emt 0:13:16][%cal Oc8c3]} 21. Qd2 {[%emt 0:00:00]} (21. Bxd5 Rxc3 22. Qe4 (22. Bxf7+ $2 Rxf7 23. Rxc3 Bb5 $19) 22... Kg7 $18 (22... Rxa3 23. Qxg6+ Kh8 24. Qxh6+ Kg8 25. Be4 f5 26. exf6 Rf7 27. Ng5)) 21... Kg7 {[%emt 0:17:22]} (21... Rxc3 $142 22. Qxc3 (22. Rxc3 Nb5 $18) 22... Nb5) 22. Nxd5 {[%emt 0:00:00]} (22. Bxd5 $2 {loses.} Rxc3 23. Rxc3 Qxd5 $19) 22... Bb5 {[%emt 0:03:58]} 23. Rxc8 {[%emt 0:00:00]} Nxc8 {[%emt 0:00:00]} 24. Rc1 {[%emt 0:03:30][%cal Oc1c8]} Bc6 {[%emt 0:01:00][%cal Bb5c6,Bc6e4,Be4f5][%mdl 32]} 25. Nxe7 {[%emt 0:00:30]} Nxe7 {[%emt 0:00:30] [#]} 26. Ne1 {[%emt 0:00:30]} (26. d5 $1 $18 {[%cal Rd5c6]} Nxd5 27. Rd1) 26... Qd7 {[%emt 0:00:30]} 27. Nc2 {[%emt 0:00:30]} Qg4 {[%emt 0:00:30]} ({Black should play} 27... Rd8) 28. Ne3 $16 {[%emt 0:00:30]} Qg5 {[%emt 0:00:30][%cal Oc6g2]} 29. Rd1 $36 {[%emt 0:00:30][%mdl 2048] Black is under strong pressure.} Be4 {[%emt 0:00:00]} 30. Qf2 {[%emt 0:00:30] h4 is the strong threat.} Nf5 {[%emt 0:00:00]} 31. Nxf5+ {[%emt 0:00:00]} Bxf5 {[%emt 0:00:00]} 32. Bd5 {[%emt 0:00:00]} b5 {[%emt 0:00:03]} 33. Bb7 {[%emt 0:00:00] Prevents Rc8} Rb8 {[%emt 0:00:16] [#]} (33... Qe7 $16) 34. Bf3 {[%emt 0:00:00]} ({Weaker is} 34. Bxa6 Rb6 35. Bxb5 (35. h4 $2 Qg4 $19) 35... Rxb5 $15) (34. Bc6 $1 $18) 34... Rc8 {[%emt 0:00:17]} 35. d5 {[%emt 0:00:00][%cal Oe5e6]} Rc1 {[%emt 0:00:45]} 36. Qd4 {[%emt 0:00:00]} Rxd1+ {[%emt 0:00:34]} 37. Bxd1 {[%emt 0:00:00][%mdl 4096] Endgame. aiming for d6. KQB-KQB} Kf8 {[%emt 0:00:15]} (37... Kg8 $16 38. h3 Qg3) 38. Qc5+ $2 {[%emt 0:00:00]} (38. d6 $18 {Black must now prevent h4.} Be6 39. h4) 38... Kg8 $1 $11 {[%emt 0:00:13]} 39. Bf3 {[%emt 0:00:00]} Qd2 {[%emt 0:00:18] Inhibits Qc3.} 40. d6 {[%emt 0:00:00]} Qe1+ {[%emt 0:00:00] The position is equal.} 41. Qg1 {[%emt 0:00:00]} Qxe5 {[%emt 0:00:27]} 42. Qd1 {[%emt 0:00:00]} Bd7 {[%emt 0:00:50] Wards off Bc6} 43. h3 {[%emt 0:00:00]} Kg7 {[%emt 0:05:04]} 44. Qd3 {[%emt 0:00:00]} f5 {[%emt 0:01:07]} 45. Bb7 {[%emt 0:00:00]} Kf6 {[%emt 0:02:12]} 46. Bxa6 {[%emt 0:00:00]} Qe1+ {[%emt 0:00:47]} 47. Kh2 {[%emt 0:00:00]} Qe5+ {[%emt 0:00:10]} 48. Kh1 {[%emt 0:00:00]} Qe1+ {[%emt 0:01:03]} 49. Kh2 {[%emt 0:00:00]} Qe5+ {[%emt 0:00:03]} 50. Kh1 {[%emt 0:00:00] White really could win this.   Weighted Error Value: White=0.31/Black=0.29 (precise) .  Loses game:     	---       	Black=1      Missed win:     	White=1     	---        Mistake:       	White=2     	Black=5      Inaccurate:     	White=3     	Black=5      OK:         	White=14    	Black=17     Best:        	White=3     	---        Strong:       	---       	Black=1} 1/2-1/2

[Event "Romanian Women Championship 2024"]
[Site "Eforie Nord"]
[Date "2024.03.02"]
[Round "9.4"]
[White "Schiopu, Oana-Magdalena"]
[Black "Sandu, Mihaela"]
[Result "0-1"]
[ECO "C23"]
[WhiteElo "1750"]
[BlackElo "2265"]
[Annotator "TA"]
[PlyCount "106"]
[EventDate "2024.02.24"]
[EventType "swiss"]
[EventCountry "ROU"]
[SourceTitle "playchess.com"]
[Source "ChessBase"]
[SourceQuality "1"]
[TimeControl "40/5400+30:900+30"]

{[%evp 9,106,-54,-9,-18,-19,-72,-68,-61,28,34,32,10,41,7,19,-22,0,-62,-22,-33,-24,-46,-60,-82,-74,-77,-47,-183,-114,-157,-154,-154,-134,-203,-210,-247,-191,-171,-166,-219,-206,-218,-214,-210,-195,-221,-179,-239,-226,-301,-266,-296,-252,-284,-269,-275,-261,-427,-407,-387,-370,-407,-408,-396,-386,-359,-306,-320,-307,-331,-339,-571,-475,-480,-471,-1307,-963,-1029,-1082,-1265,-1233,-1237,-1309,-1268,-1256,-1244,-1244,-1101,-939,-1627,-1602,-1456,-1443,-29983,-29983,-29984,-29984,-29987,-29988]} 1. e4 {[%emt 0:00:05]} e5 {[%emt 0:00:03]} 2. Bc4 {[%emt 0:00:14]} Nc6 {[%emt 0:01:01]} 3. Ne2 {[%emt 0:02:01]} Bc5 {[%emt 0:02:49]} 4. O-O {[%emt 0:03:50]} Nf6 {[%emt 0:00:35]} 5. Ng3 {[%emt 0:00:54]} d6 {[%emt 0:03:11]} 6. h3 {[%emt 0:01:22]} h5 {[%emt 0:03:24]} 7. d3 {[%emt 0:02:47]} (7. Bd5 $11) 7... h4 $17 {[%emt 0:00:46]} 8. Ne2 {[%emt 0:01:45] Black is slightly better.} Be6 {[%emt 0:06:41]} (8... g5 $1 $15 9. b4 (9. Bxg5 Rg8 $11) 9... Nxb4) 9. Bxe6 $11 {[%emt 0:04:56]} fxe6 {[%emt 0:00:06]} 10. c3 {[%emt 0:00:05]} Bb6 {[%emt 0:00:38]} 11. Kh1 {[%emt 0:06:49]} Qd7 {[%emt 0:06:26]} 12. Nd2 {[%emt 0:08:25][%cal Bb1d2,Bd2f3,Bf3d4][%mdl 32]} d5 {[%emt 0:02:56]} 13. exd5 {[%emt 0:04:28]} (13. Qc2 $11) 13... exd5 {[%emt 0:00:38]} 14. Nf3 {[%emt 0:01:39] Prevents g5} O-O-O {[%emt 0:03:01]} 15. b4 {[%emt 0:02:25]} e4 {[%emt 0:01:46]} 16. Nfd4 {[%emt 0:04:51]} Ne5 {[%emt 0:02:37]} 17. dxe4 {[%emt 0:03:50]} Nxe4 {[%emt 0:00:07]} 18. f4 {[%emt 0:11:21] White is now going downhill.} ({White should try} 18. a4 $15) 18... Nc6 {[%emt 0:09:14]} ({Black should play} 18... Nc4 $19 19. a4 a6) 19. Kh2 {[%emt 0:02:08] [#]} Nxc3 $1 {[%emt 0:01:32][%mdl 512] Black is much more active.} 20. Nxc3 {[%emt 0:02:17] Nxc6 is the strong threat.} Nxd4 {[%emt 0:03:50]} 21. a4 {[%emt 0:02:26]} (21. Na4 $17 Nf5 22. Nxb6+ axb6 23. a4) 21... Nf5 $19 {[%emt 0:00:07]} 22. Ne2 {[%emt 0:04:11]} Ne3 {[%emt 0:03:42]} 23. Bxe3 {[%emt 0:02:56]} Bxe3 {[%emt 0:00:08]} 24. Qd3 {[%emt 0:01:36]} (24. Nc1 $142) 24... d4 {[%emt 0:00:58]} 25. b5 {[%emt 0:00:51]} Rh5 {[%emt 0:00:54]} 26. Rad1 {[%emt 0:07:44]} Rd5 {[%emt 0:04:34]} 27. Rf3 {[%emt 0:02:34]} Qd6 {[%emt 0:04:26]} 28. Kh1 {[%emt 0:02:08]} (28. Qe4 {was necessary.}) 28... a5 {[%emt 0:12:49]} 29. f5 {[%emt 0:03:12] White is weak on the dark squares} Kb8 {[%emt 0:06:26]} 30. Rdf1 {[%emt 0:03:11]} Re8 {[%emt 0:07:12]} 31. f6 {[%emt 0:01:14]} gxf6 {[%emt 0:13:23]} 32. Rxf6 {[%emt 0:00:09]} Qc5 {[%emt 0:00:00]} 33. Kh2 $2 {[%emt 0:05:15]} (33. Qg6 Rdd8 34. Qd3) 33... Bg5 {[%emt 0:00:00]} 34. R6f5 {[%emt 0:00:47]} Qd6+ {[%emt 0:00:00]} 35. Kh1 {[%emt 0:00:14]} Rxf5 {[%emt 0:00:00]} 36. Rxf5 {[%emt 0:00:17]} Bf6 {[%emt 0:00:00]} 37. Rf3 {[%emt 0:01:37]} Qe5 {[%emt 0:00:00]} 38. Ng1 {[%emt 0:00:23]} Bg5 {[%emt 0:00:09]} 39. Qg6 {[%emt 0:00:46] [#] aiming for Rf5.} Be3 {[%emt 0:00:26]} 40. Ne2 $2 {[%emt 0:00:00]} (40. Rf1) 40... Qe4 {[%emt 0:00:00]} 41. Qf7 {[%emt 0:04:40]} Rc8 {[%emt 0:05:00]} 42. Qd7 {[%emt 0:04:04]} (42. Qb3 $142) 42... Qd3 {[%emt 0:00:55] ( -> ...Qd1+)} 43. Rxe3 {[%emt 0:04:38]} Qxe3 {[%emt 0:00:15]} 44. Nxd4 {[%emt 0:00:09][%mdl 4096] Endgame. KQR-KQN} Qe1+ {[%emt 0:07:46]} 45. Kh2 {[%emt 0:00:12]} Qe5+ {[%emt 0:00:15]} 46. Kh1 {[%emt 0:00:17]} Rf8 {[%emt 0:00:41]} 47. Nf3 {[%emt 0:02:52]} Qa1+ {[%emt 0:00:07]} 48. Kh2 {[%emt 0:00:11]} Qxa4 {[%emt 0:00:05]} 49. Nd4 {[%emt 0:01:11]} Qb4 {[%emt 0:00:47] And now ...Qc5 would win.} 50. Ne6 {[%emt 0:01:05]} Rc8 {[%emt 0:00:09] White must now prevent ...a4.} 51. Kh1 {[%emt 0:01:58]} Qd6 {[%emt 0:00:21] Black mates.} 52. Qf7 {[%emt 0:00:17]} a4 {[%emt 0:00:18]} 53. Qf5 {[%emt 0:00:45]} Re8 {[%emt 0:00:58] Weighted Error Value: White=0.63/Black=0.24 (precise) .  Mistake:       	White=9     	Black=2      Inaccurate:     	White=4     	Black=3      OK:         	White=9     	Black=14     Best:        	White=1     	Black=3} 0-1

[Event "Romanian Women Championship 2024"]
[Site "Eforie Nord"]
[Date "2024.03.02"]
[Round "9.5"]
[White "Aldea, Maria-Antonia"]
[Black "Obada, Ema"]
[Result "0-1"]
[ECO "D37"]
[WhiteElo "1726"]
[BlackElo "1969"]
[Annotator "NA RC"]
[PlyCount "120"]
[EventDate "2024.02.24"]
[EventType "swiss"]
[EventCountry "ROU"]
[SourceTitle "playchess.com"]
[Source "ChessBase"]
[SourceQuality "1"]
[TimeControl "40/5400+30:900+30"]

1. Nf3 {[%emt 0:00:24]} Nf6 {[%emt 0:00:06]} 2. c4 {[%emt 0:00:13]} e6 {[%emt 0:00:07]} 3. Nc3 {[%emt 0:00:07]} d5 {[%emt 0:00:07]} 4. d4 {[%emt 0:00:08]} a6 {[%emt 0:00:10]} 5. g3 {[%emt 0:02:19]} b6 {[%emt 0:12:17]} 6. Bg2 {[%emt 0:00:31]} Bb7 {[%emt 0:00:37]} 7. cxd5 {[%emt 0:02:57]} exd5 {[%emt 0:00:14]} 8. O-O {[%emt 0:01:05]} Be7 {[%emt 0:07:23]} 9. Qc2 {[%emt 0:00:54]} O-O {[%emt 0:00:46]} 10. Bf4 {[%emt 0:01:12]} Nbd7 {[%emt 0:00:54]} 11. Rad1 {[%emt 0:00:49]} Rc8 $14 {[%emt 0:02:55]} 12. Ne5 {[%emt 0:05:32]} Re8 {[%emt 0:16:18]} 13. Bh3 {[%emt 0:03:23]} Ra8 {[%emt 0:15:25]} 14. Na4 {[%emt 0:10:18]} Nxe5 {[%emt 0:07:48]} 15. Bxe5 {[%emt 0:02:27]} Bd6 {[%emt 0:00:54]} 16. Bxd6 {[%emt 0:02:01]} Qxd6 {[%emt 0:00:10]} 17. Rc1 {[%emt 0:02:37]} Re7 {[%emt 0:00:07]} 18. e3 {[%emt 0:02:10]} Rae8 {[%emt 0:00:27]} 19. Nc3 {[%emt 0:01:44]} Ne4 {[%emt 0:04:54]} 20. Bg2 {[%emt 0:02:38]} h5 {[%emt 0:01:25]} 21. Ne2 {[%emt 0:03:55]} h4 {[%emt 0:02:08]} 22. g4 {[%emt 0:02:48]} Qd7 {[%emt 0:07:28]} 23. h3 {[%emt 0:02:17]} a5 {[%emt 0:02:29]} 24. Nf4 {[%emt 0:04:32]} Ba6 {[%emt 0:02:05]} 25. Rfe1 {[%emt 0:00:43]} Bb5 {[%emt 0:02:29]} 26. f3 {[%emt 0:05:30]} Ng3 {[%emt 0:02:47]} 27. Kf2 {[%emt 0:02:04]} Qd6 {[%emt 0:03:57]} 28. b3 {[%emt 0:03:34]} Rc8 {[%emt 0:04:09]} 29. a4 {[%emt 0:03:18]} Be8 {[%emt 0:00:30]} 30. Nd3 {[%emt 0:00:57]} f6 {[%emt 0:00:36]} 31. Nf4 {[%emt 0:01:29]} g5 {[%emt 0:00:16]} 32. Nd3 {[%emt 0:04:06]} Bg6 {[%emt 0:00:10]} 33. Qd2 {[%emt 0:02:01]} Rce8 {[%emt 0:00:39]} 34. Rc3 {[%emt 0:05:05]} Kg7 {[%emt 0:00:18]} 35. Qc1 {[%emt 0:03:54]} Qd7 {[%emt 0:01:04]} 36. Qd2 {[%emt 0:02:15]} Qd6 {[%emt 0:00:15]} 37. Qc1 {[%emt 0:00:57]} Rc8 {[%emt 0:00:26]} 38. Rc6 {[%emt 0:01:54]} Qd7 {[%emt 0:00:08]} 39. Rd1 {[%emt 0:06:06]} Rce8 {[%emt 0:01:05]} 40. Rc3 {[%emt 0:00:00]} Kh6 {[%emt 0:00:00]} 41. Re1 {[%emt 0:01:44]} Rc8 {[%emt 0:02:50]} 42. Qd2 {[%emt 0:03:05]} Qd6 {[%emt 0:00:31]} 43. Rec1 {[%emt 0:03:11]} c6 {[%emt 0:00:29]} 44. Re1 {[%emt 0:05:17]} Rec7 {[%emt 0:01:48]} 45. Rec1 {[%emt 0:00:53]} Qe6 {[%emt 0:00:46]} 46. Nb2 {[%emt 0:04:55]} f5 {[%emt 0:00:38]} 47. Nd3 {[%emt 0:00:41]} fxg4 {[%emt 0:00:24]} 48. hxg4 {[%emt 0:03:29]} Bxd3 {[%emt 0:00:22]} 49. Rxd3 {[%emt 0:00:28]} Rf8 {[%emt 0:02:41]} 50. Kg1 {[%emt 0:01:53]} h3 {[%emt 0:03:25]} 51. Bxh3 {[%emt 0:00:12]} Rxf3 {[%emt 0:00:17]} 52. Bg2 {[%emt 0:02:33]} Ne4 {[%emt 0:01:14]} 53. Qd1 {[%emt 0:00:37]} Rg3 {[%emt 0:00:31]} 54. Rc2 {[%emt 0:00:47]} Kg6 {[%emt 0:03:10]} 55. Kh2 {[%emt 0:02:21]} Rh7+ {[%emt 0:00:21]} 56. Kg1 {[%emt 0:00:00]} Rxg4 {[%emt 0:00:27]} 57. Kf1 {[%emt 0:00:00]} Rf7+ {[%emt 0:01:02]} 58. Ke1 {[%emt 0:00:00]} Rxg2 {[%emt 0:02:27]} 59. Rxg2 {[%emt 0:00:07]} Qh3 {[%emt 0:00:11]} 60. Qg4 {[%emt 0:01:41]} Qxg4 {[%emt 0:00:09]} 0-1